bitfinex/quotes_SOLUSD_20250722
["timestamp","ask_amount","ask_price","bid_price","bid_amount"]
[1753155332194,26.0,201.05,200.98,38.76]
[1753155332195,0.67,201.0,200.98,38.76]
[1753155332394,15.24589543,200.99,200.98,38.76]
[1753155332703,15.91589543,201.0,200.98,38.76]
[1753155333199,37.6759513,200.99,200.97,0.2]
[1753155333403,15.24589543,200.98,200.97,0.2]
[1753155333604,15.91589543,200.98,200.97,0.2]
[1753155333797,0.67,200.98,200.97,0.2]
[1753155333992,0.67,200.98,200.95,0.03]
[1753155333993,42.78468397,200.96,200.95,0.03]
[1753155334186,16.78468397,200.95,200.93,0.03]
[1753155334387,58.0305794,200.94,200.93,0.03]
[1753155334604,58.7005794,200.94,200.93,0.03]
[1753155335191,63.67718933,200.94,200.93,0.03]
[1753155335386,37.67718933,200.94,200.93,1e-08]
[1753155335603,37.67718933,200.94,200.81,0.2]
[1753155335604,42.78468397,200.9,200.81,0.2]
[1753155335808,15.24589543,200.84,200.81,0.2]
[1753155335992,15.24589543,200.83,200.81,0.2]
[1753155336402,15.24589543,200.84,200.81,0.2]
[1753155336707,15.24589543,200.83,200.81,0.2]
[1753155337493,15.24589543,200.82,200.81,0.2]
[1753155338511,16.78468397,200.86,200.81,0.2]
[1753155338805,15.24589543,200.85,200.81,0.2]
[1753155339011,15.24589543,200.84,200.81,0.2]
[1753155339511,0.7,200.85,200.81,0.2]
[1753155339512,15.24589543,200.85,200.81,0.2]
[1753155340008,15.94589543,200.85,200.81,0.2]
[1753155340210,15.24589543,200.83,200.81,0.2]
[1753155340993,32.7305794,200.82,200.81,0.2]
[1753155341205,26.0,200.79,200.71,35.78]
[1753155341495,15.24589543,200.72,200.68,38.64]
[1753155341814,42.78468397,200.79,200.7,15.24589543]
[1753155341815,15.24589543,200.77,200.7,15.24589543]
[1753155342013,15.24589543,200.76,200.69,15.24589543]
[1753155342211,15.24589543,200.73,200.68,38.64]
[1753155342417,15.24589543,200.74,200.68,38.64]
[1753155342595,15.24589543,200.78,200.69,0.14216157]
[1753155342798,12.4444304,200.9,200.75,15.388057]
[1753155343100,15.24589543,200.78,200.76,38.64]
[1753155343294,15.24589543,200.78,200.67,16.78468397]
[1753155343295,16.78468397,200.76,200.67,15.24589543]
[1753155343516,16.78468397,200.76,200.65,0.64]
[1753155343517,15.24589543,200.72,200.69,0.14216157]
[1753155343823,15.24589543,200.73,200.69,0.14216157]
[1753155344000,16.78468397,200.76,200.68,38.64]
[1753155344196,15.24589543,200.74,200.68,38.64]
[1753155344394,15.24589543,200.72,200.68,38.64]
[1753155344719,15.24589543,200.71,200.68,38.64]
[1753155344899,15.24589543,200.72,200.68,38.64]
[1753155345311,15.24589543,200.71,200.68,38.64]
[1753155345512,26.0,200.74,200.69,0.14216157]
[1753155345711,15.24589543,200.73,200.69,0.14216157]
[1753155345897,26.0,200.74,200.69,0.14216157]
[1753155345898,15.24589543,200.72,200.69,0.14216157]
[1753155346099,15.94589543,200.73,200.69,0.14216157]
[1753155346609,15.24589543,200.72,200.68,38.64]
[1753155346920,15.94589543,200.73,200.68,38.64]
[1753155347322,26.0,200.74,200.69,0.14216157]
[1753155347542,60.22313187,201.01,200.69,0.14216157]
[1753155347543,0.7,200.83,200.73,15.388057]
[1753155347832,0.7,200.83,200.77,15.388057]
[1753155348039,32.0305794,200.82,200.75,15.24589543]
[1753155348216,15.24589543,200.76,200.74,38.58]
[1753155348538,15.94589543,200.75,200.74,38.58]
[1753155349016,15.94589543,200.75,200.7,38.58]
[1753155349223,15.24589543,200.73,200.7,38.58]
[1753155349800,0.7,200.82,200.73,0.14216157]
[1753155350006,15.24589543,200.83,200.77,15.24589543]
[1753155350199,15.24589543,200.83,200.78,38.54]
[1753155350405,15.24589543,200.84,200.78,38.54]
[1753155350631,15.24589543,200.87,200.82,0.14216157]
[1753155350929,15.24589543,200.83,200.77,38.54]
[1753155351233,15.24589543,200.78,200.77,38.54]
[1753155351698,15.24589543,200.79,200.77,38.54]
[1753155351900,15.94589543,200.78,200.77,38.54]
[1753155352401,16.78468397,200.77,200.69,0.03]
[1753155352710,16.78468397,200.77,200.7,38.56]
[1753155352711,15.24589543,200.73,200.7,38.56]
[1753155352931,15.24589543,200.74,200.7,38.56]
[1753155353608,17.48468397,200.77,200.71,0.14216157]
[1753155353609,0.7,200.77,200.71,0.14216157]
[1753155353816,15.94589543,200.77,200.71,0.14216157]
[1753155354017,15.24589543,200.76,200.71,0.14216157]
[1753155354229,15.24589543,200.74,200.71,0.14216157]
[1753155354534,15.24589543,200.75,200.71,0.14216157]
[1753155354833,15.24589543,200.73,200.7,38.56]
[1753155355033,15.24589543,200.74,200.7,38.56]
[1753155355209,15.24589543,200.75,200.7,38.56]
[1753155355609,15.24589543,200.74,200.7,38.56]
[1753155355806,15.24589543,200.74,200.65,0.64]
[1753155355807,6.9485,200.7,200.58,1.15950048]
[1753155356007,6.9485,200.7,200.27,0.7]
[1753155356008,2.599,200.53,200.27,0.7]
[1753155356219,2.599,200.53,200.19,10.03]
[1753155356220,26.0,200.43,200.25,0.7]
[1753155356417,0.5,200.42,200.33,15.24589543]
[1753155356606,15.24589543,200.46,200.34,39.94]
[1753155356813,15.24589543,200.46,200.23,5.02422615]
[1753155356814,2.599,200.53,200.39,15.24589543]
[1753155357130,15.24589543,200.49,200.4,39.96]
[1753155357334,15.24589543,200.47,200.4,39.96]
[1753155357536,26.0,200.5,200.4,39.96]
[1753155357537,15.24589543,200.46,200.4,39.96]
[1753155358028,26.0,200.39,200.27,0.7]
[1753155358230,15.24589543,200.34,200.27,0.7]
[1753155358434,26.0,200.41,200.29,15.24589543]
[1753155358730,15.24589543,200.37,200.29,15.24589543]
[1753155359031,15.24589543,200.37,200.28,54.56589543]
[1753155359232,4.98911052,200.44,200.35,15.24589543]
[1753155359406,15.24589543,200.46,200.38,15.24589543]
[1753155359732,15.24589543,200.48,200.4,15.24589543]
[1753155360102,12.96786641,200.52,200.4,15.24589543]
[1753155360103,4.98774518,200.5,200.4,15.24589543]
[1753155360452,4.98720848,200.52,200.41,0.7]
[1753155360626,4.98720848,200.52,200.44,15.24589543]
[1753155360831,15.24589543,200.47,200.44,39.42]
[1753155361012,4.98720848,200.52,200.44,39.42]
[1753155361209,15.24589543,200.47,200.44,39.42]
[1753155361413,15.24589543,200.45,200.36,26.7]
[1753155361637,15.24589543,200.38,200.33,35.86]
[1753155361843,15.24589543,200.38,200.36,39.42]
[1753155362011,12.47273701,200.44,200.36,39.42]
[1753155362217,15.24589543,200.45,200.38,15.24589543]
[1753155362520,15.24589543,200.43,200.36,40.12]
[1753155362729,43.46005203,200.46,200.36,40.12]
[1753155362730,15.24589543,200.42,200.36,40.12]
[1753155363036,15.24589543,200.4,200.33,51.10589543]
[1753155363251,15.24589543,200.35,200.33,35.86]
[1753155363540,17.46005203,200.46,200.33,35.86]
[1753155363541,17.46005203,200.46,200.33,51.10589543]
[1753155363720,29.18126745,200.45,200.38,15.24589543]
[1753155363925,13.93537202,200.45,200.43,15.24589543]
[1753155364117,13.93537202,200.45,200.44,0.7]
[1753155364315,15.24589543,200.52,200.44,15.94589543]
[1753155364521,6.07546957,200.61,200.33,35.86]
[1753155364522,15.24589543,200.47,200.45,39.44]
[1753155364729,15.24589543,200.46,200.4,0.7]
[1753155364916,15.24589543,200.43,200.41,39.46]
[1753155365420,15.24589543,200.46,200.41,39.46]
[1753155365617,26.0,200.45,200.41,40.16]
[1753155365842,4.98902414,200.44,200.41,39.46]
[1753155366037,20.23491957,200.44,200.41,39.46]
[1753155366237,15.24589543,200.42,200.38,0.14216157]
[1753155366416,15.24589543,200.42,200.39,39.44]
[1753155366736,15.24589543,200.42,200.39,39.42]
[1753155367130,15.24589543,200.4,200.39,39.42]
[1753155367344,15.24589543,200.41,200.39,39.42]
[1753155367646,16.78468397,200.45,200.39,39.42]
[1753155367647,26.0,200.45,200.4,0.14216157]
[1753155367822,41.24589543,200.45,200.4,0.14216157]
[1753155368021,41.24589543,200.45,200.39,39.42]
[1753155368022,15.24589543,200.41,200.39,39.42]
[1753155368439,15.24589543,200.4,200.39,39.42]
[1753155368942,16.78468397,200.43,200.39,39.42]
[1753155369140,15.24589543,200.41,200.39,39.42]
[1753155369443,15.24589543,200.4,200.39,39.42]
[1753155369626,15.24589543,200.4,200.34,0.14216157]
[1753155369828,42.78468397,200.41,200.35,39.36]
[1753155370017,20.2369116,200.36,200.35,39.36]
[1753155370829,49.49913599,200.36,200.28,0.67]
[1753155371033,26.0,200.35,200.29,39.3]
[1753155371318,26.0,200.37,200.32,0.7]
[1753155371523,26.0,200.37,200.32,0.03]
[1753155371524,15.24589543,200.36,200.32,0.03]
[1753155371867,32.0305794,200.33,200.32,0.03]
[1753155372143,20.23765902,200.33,200.32,0.03]
[1753155373742,12.47562742,200.4,200.32,0.03]
[1753155373939,15.24589543,200.39,200.34,0.14216157]
[1753155374128,4.98902414,200.44,200.37,15.388057]
[1753155374336,15.24589543,200.43,200.37,15.388057]
[1753155374640,15.24589543,200.43,200.39,0.14216157]
[1753155374839,15.24589543,200.43,200.39,39.44216157]
[1753155375243,15.24589543,200.4,200.39,39.3]
[1753155375748,4.99026897,200.39,200.32,0.03]
[1753155375927,15.24589543,200.33,200.32,0.03]
[1753155376538,15.24589543,200.34,200.32,0.03]
[1753155376727,15.24589543,200.33,200.32,0.03]
[1753155377547,32.5305794,200.33,200.32,0.03]
[1753155377842,32.5305794,200.33,200.23,39.29]
[1753155377843,4.99226199,200.31,200.23,39.29]
[1753155378045,4.99226199,200.31,200.24,0.14216157]
[1753155378256,4.99226199,200.31,200.23,39.96]
[1753155378257,15.24589543,200.29,200.23,39.96]
[1753155378424,15.24589543,200.28,200.23,39.96]
[1753155378627,4.99226199,200.31,200.24,0.67]
[1753155378828,15.24589543,200.27,200.24,0.67]
[1753155379032,15.24589543,200.26,200.23,38.70052636]
[1753155379442,15.24589543,200.27,200.23,39.37052636]
[1753155379930,15.24589543,200.25,200.23,39.37052636]
[1753155380352,15.24589543,200.26,200.23,39.37052636]
[1753155381651,15.24589543,200.24,200.23,38.70052636]
[1753155381949,4.9942566,200.23,200.19,0.03]
[1753155382136,15.24589543,200.2,200.19,0.03]
[1753155382326,15.24589543,200.22,200.19,0.03]
[1753155382532,4.9937578,200.25,200.19,55.08589543]
[1753155383053,15.24589543,200.2,200.19,0.03]
[1753155383429,15.24589543,200.23,200.19,0.03]
[1753155383627,46.23965323,200.25,200.19,0.7]
[1753155383933,46.23965323,200.25,200.2,0.67]
[1753155384656,15.24589543,200.23,200.19,0.03]
[1753155384854,15.24589543,200.22,200.19,0.03]
[1753155385037,15.24589543,200.2,200.19,0.03]
[1753155385652,32.5305794,200.2,200.19,0.03]
[1753155386156,32.5305794,200.2,200.18,0.03]
[1753155386339,15.24589543,200.19,200.18,0.03]
[1753155386651,4.9952545,200.19,200.18,0.03]
[1753155386949,37.0258339,200.19,200.18,0.03]
[1753155387154,32.99138708,200.19,200.18,0.03]
[1753155388035,4.99450604,200.22,200.18,0.03]
[1753155388230,36.71144861,200.21,200.18,0.03]
[1753155388448,15.70595465,200.22,200.18,0.03]
[1753155388954,10.71144861,200.21,200.18,0.03]
[1753155389131,10.71144861,200.22,200.18,0.7]
[1753155389335,41.70583377,200.23,200.18,0.7]
[1753155389530,10.71144861,200.26,200.19,11.38144861]
[1753155390153,10.71144861,200.23,200.18,0.03]
[1753155390357,10.71144861,200.2,200.18,0.03]
[1753155390656,10.71144861,200.24,200.19,0.67]
[1753155390860,10.71144861,200.28,200.22,10.71144861]
[1753155391170,10.71144861,200.28,200.23,39.73]
[1753155391463,5.49151094,200.35,200.25,0.14216157]
[1753155391665,10.71144861,200.32,200.26,0.67]
[1753155391849,10.71144861,200.33,200.27,0.14216157]
[1753155392034,10.71144861,200.3,200.23,39.06]
[1753155392238,10.71144861,200.33,200.27,0.14216157]
[1753155392441,16.3966,200.43,200.23,39.06]
[1753155392442,4.99080337,200.37,200.28,11.52361018]
[1753155392654,6.53978082,200.45,200.34,10.71144861]
[1753155392854,10.71144861,200.42,200.35,10.71144861]
[1753155393056,4.98858816,200.46,200.35,0.67]
[1753155393253,4.98777993,200.49,200.4,10.71144861]
[1753155393575,10.71144861,200.47,200.4,11.38144861]
[1753155393753,15.69922854,200.49,200.42,10.71144861]
[1753155393939,10.71144861,200.48,200.43,0.67]
[1753155394135,10.71144861,200.49,200.43,10.71144861]
[1753155394442,0.06,200.51,200.48,10.71144861]
[1753155394637,0.06,200.51,200.45,0.14216157]
[1753155394839,0.06,200.51,200.47,10.71144861]
[1753155395043,0.06,200.51,200.49,10.71144861]
[1753155395252,0.06,200.51,200.49,15.31475122]
[1753155395545,0.06,200.51,200.5,0.67]
[1753155395747,0.06,200.51,200.48,0.67]
[1753155395938,0.06,200.51,200.47,0.14216157]
[1753155396134,15.37475122,200.51,200.44,15.45691279]
[1753155396372,0.06,200.51,200.46,15.45691279]
[1753155396538,15.37475122,200.51,200.45,15.31475122]
[1753155396741,15.31475122,200.46,200.41,39.04]
[1753155396964,15.31475122,200.45,200.41,39.04]
[1753155397266,15.31475122,200.43,200.39,0.67]
[1753155397560,15.31475122,200.42,200.35,60.99925122]
[1753155398065,15.31475122,200.41,200.35,45.6845]
[1753155398240,15.31475122,200.43,200.37,15.31475122]
[1753155398440,15.31475122,200.43,200.37,15.97475122]
[1753155398742,4.98927306,200.43,200.37,15.97475122]
[1753155398938,4.98927306,200.43,200.37,0.66]
[1753155398939,20.30402428,200.43,200.37,0.66]
[1753155399147,20.30402428,200.43,200.38,0.14216157]
[1753155399348,15.31475122,200.4,200.35,38.98]
[1753155399554,5.48927306,200.43,200.36,0.66]
[1753155399555,4.98927306,200.43,200.36,0.66]
[1753155399760,15.31475122,200.41,200.36,0.66]
[1753155400061,16.78468397,200.33,200.24,15.31475122]
[1753155400365,16.78468397,200.33,200.18,11.35448969]
[1753155400366,26.0,200.33,200.25,15.97475122]
[1753155400546,15.31475122,200.32,200.25,0.66]
[1753155400861,0.5,200.37,200.25,0.66]
[1753155401061,15.31475122,200.27,200.21,0.66]
[1753155401255,15.31475122,200.26,200.22,0.14216157]
[1753155401560,15.31475122,200.26,200.21,0.66]
[1753155401774,15.31475122,200.22,200.18,0.69]
[1753155401982,15.31475122,200.21,200.18,0.03]
[1753155402673,15.31475122,200.2,200.18,0.03]
[1753155402979,17.28468397,200.19,200.18,0.03]
[1753155403174,32.59943519,200.19,200.18,0.03]
[1753155403466,16.78468397,200.15,200.11,0.2]
[1753155403672,15.31475122,200.12,200.11,0.2]
[1753155403867,16.78468397,200.15,200.11,0.2]
[1753155404054,16.78468397,200.18,200.11,0.86]
[1753155404368,15.31475122,200.22,200.15,15.31475122]
[1753155404667,16.78468397,200.23,200.12,39.92]
[1753155404668,15.31475122,200.17,200.12,39.92]
[1753155404873,15.31475122,200.16,200.12,39.26]
[1753155405071,15.31475122,200.14,200.13,0.03]
[1753155405745,4.99445399,200.23,200.13,0.69]
[1753155405952,4.99445399,200.23,200.13,39.31]
[1753155405953,15.31475122,200.15,200.13,39.31]
[1753155406146,15.31475122,200.15,200.13,0.03]
[1753155406147,32.09943519,200.14,200.13,0.03]
[1753155406365,32.56943519,200.14,200.13,0.03]
[1753155406545,15.31475122,200.14,200.13,0.03]
[1753155406751,16.78468397,200.15,200.13,0.03]
[1753155407068,15.31475122,200.14,200.13,0.03]
[1753155407369,0.47,200.24,200.14,0.66]
[1753155407561,15.31475122,200.15,200.13,0.03]
[1753155407762,15.31475122,200.14,200.13,0.03]
[1753155408549,15.31475122,200.14,200.11,0.2]
[1753155408550,42.78468397,200.12,200.11,0.2]
[1753155408755,47.78268476,200.08,200.07,0.2]
[1753155408971,63.09743598,200.08,200.07,0.2]
[1753155409172,48.25268476,200.08,200.07,0.2]
[1753155409676,42.78468397,200.11,200.07,0.2]
[1753155409864,48.25193548,200.11,200.07,0.2]
[1753155410170,16.78468397,200.09,200.07,0.2]
[1753155410882,21.78267575,200.09,200.07,0.2]
[1753155411174,22.25267575,200.09,200.07,0.2]
[1753155411952,0.47,200.08,200.07,0.2]
[1753155412868,21.78267575,200.09,200.07,0.2]
[1753155413264,31.4674965,200.11,200.07,0.2]
[1753155413467,16.78468397,200.1,200.07,0.2]
[1753155413667,26.0,200.08,200.07,0.2]
[1753155415485,42.78468397,200.08,200.07,0.2]
[1753155415981,30.99747581,200.11,200.07,0.2]
[1753155416283,42.78468397,200.08,200.07,0.2]
[1753155416886,42.78468397,200.08,199.97,0.03]
[1753155416887,16.78468397,200.03,199.97,0.03]
[1753155417085,15.31475122,199.98,199.97,0.03]
[1753155417396,26.0,200.04,199.97,0.69]
[1753155417397,10.72714542,200.01,199.97,0.69]
[1753155417571,12.49244778,200.13,199.98,0.66]
[1753155417774,10.72714542,200.05,199.98,0.66]
[1753155417967,10.72714542,200.06,199.99,10.72714542]
[1753155418286,10.72714542,200.07,200.0,10.72714542]
[1753155418584,10.72714542,200.05,200.0,0.66]
[1753155418758,10.72714542,200.01,199.97,0.03]
[1753155419190,10.72714542,200.01,199.97,0.69]
[1753155419395,10.72714542,199.98,199.97,0.03]
[1753155419708,16.78468397,200.0,199.97,0.03]
[1753155419861,10.72714542,199.99,199.97,0.03]
[1753155420261,27.51182939,199.98,199.97,0.03]
[1753155420691,27.51182939,199.98,199.93,0.03]
[1753155420692,42.78468397,199.94,199.93,0.03]
[1753155420895,27.51182939,199.94,199.93,0.03]
[1753155421066,10.72714542,199.94,199.93,0.03]
[1753155421264,10.72714542,199.95,199.93,0.03]
[1753155421497,10.72714542,199.96,199.93,0.03]
[1753155421703,37.19714542,199.94,199.86,0.2]
[1753155421866,36.72714542,199.87,199.86,0.2]
[1753155422199,26.0,199.83,199.81,0.2]
[1753155422491,16.78468397,199.86,199.81,0.2]
[1753155422683,16.78468397,199.88,199.82,0.66]
[1753155422986,16.78468397,199.92,199.82,0.66]
[1753155423159,10.72714542,199.9,199.82,0.66]
[1753155423362,10.72714542,199.91,199.84,10.72714542]
[1753155423566,16.78468397,199.94,199.85,0.66]
[1753155423766,10.72714542,199.88,199.83,39.72]
[1753155423989,26.0,199.82,199.81,0.2]
[1753155424177,0.47,199.87,199.81,0.2]
[1753155424384,27.51182939,199.82,199.81,0.2]
[1753155424592,16.78468397,199.82,199.81,0.2]
[1753155424778,27.98182939,199.82,199.81,1e-08]
[1753155425270,32.51633344,199.82,199.81,1e-08]
[1753155425466,32.98633344,199.82,199.81,1e-08]
[1753155426193,10.72714542,199.83,199.81,1e-08]
[1753155426488,10.72714542,199.9,199.82,10.72714542]
[1753155426670,10.72714542,199.9,199.81,0.66000001]
[1753155426671,5.00170139,199.94,199.83,0.66]
[1753155426985,10.72714542,199.92,199.85,10.72714542]
[1753155427167,5.00170139,199.94,199.85,10.72714542]
[1753155427368,10.72714542,199.96,199.86,5.66350245]
[1753155427583,0.47,200.02,199.86,5.66350245]
[1753155427584,10.72714542,199.95,199.88,10.72714542]
[1753155427786,17.96825016,200.02,199.88,10.72714542]
[1753155428102,17.96825016,200.02,199.9,10.72714542]
[1753155428103,4.99950004,200.02,199.9,10.72714542]
[1753155428388,10.72714542,199.98,199.91,11.38714542]
[1753155428591,10.72714542,199.99,199.92,10.72714542]
[1753155428898,10.72714542,199.97,199.91,0.66]
[1753155429105,4.99875031,200.05,199.93,0.14216157]
[1753155429270,10.72714542,200.02,199.96,10.72714542]
[1753155429471,10.72714542,200.0,199.94,0.66]
[1753155429694,10.72714542,200.0,199.86,42.78468397]
[1753155429695,10.72714542,199.95,199.9,0.66]
[1753155429876,27.51182939,200.06,199.9,0.66]
[1753155429877,10.72714542,199.93,199.9,0.66]
[1753155430080,55.44251372,200.1,199.91,11.38714542]
[1753155430273,10.72714542,200.0,199.92,0.66]
[1753155430472,0.47,200.08,199.96,10.72714542]
[1753155430768,0.47,200.08,199.91,0.14216157]
[1753155430769,10.72714542,200.01,199.97,0.66]
[1753155430973,10.72714542,200.01,199.91,0.14216157]
[1753155431175,10.72714542,199.96,199.92,0.66]
[1753155431574,10.72714542,199.94,199.88,0.66]
[1753155431987,10.72714542,199.95,199.88,11.38714542]
[1753155432397,10.72714542,199.93,199.88,0.66]
[1753155432596,10.72714542,199.94,199.89,0.66]
[1753155432973,5.00102538,199.96,199.89,0.66]
[1753155433187,10.72714542,199.94,199.89,0.66]
[1753155433378,15.72889603,199.93,199.86,11.38714542]
[1753155433706,5.00175061,199.93,199.87,10.72714542]
[1753155434080,5.00175061,199.93,199.86,0.66]
[1753155434081,15.72889603,199.93,199.86,11.38714542]
[1753155434600,10.72714542,199.89,199.85,6.0403]
[1753155434774,10.72714542,199.86,199.79,6.6791]
[1753155435171,10.72714542,199.86,199.81,0.66000001]
[1753155435379,5.00375281,199.85,199.81,0.66000001]
[1753155435587,15.73089823,199.85,199.81,0.66000001]
[1753155435905,17.51313484,199.85,199.81,1e-08]
[1753155436107,53.51182939,199.82,199.81,1e-08]
[1753155436294,10.72714542,199.82,199.81,1e-08]
[1753155436619,16.78468397,199.81,199.69,1.6426]
[1753155436908,37.19714542,199.82,199.69,1.6426]
[1753155436909,26.0,199.82,199.73,10.72714542]
[1753155437120,10.72714542,199.8,199.73,10.72714542]
[1753155437409,5.00475451,199.81,199.72,0.66]
[1753155437714,10.72714542,199.85,199.78,10.72714542]
[1753155437893,26.0,199.89,199.82,10.72714542]
[1753155437894,10.72714542,199.89,199.82,10.72714542]
[1753155438086,10.72714542,199.87,199.82,0.66]
[1753155438281,10.72714542,199.84,199.78,0.66]
[1753155438616,10.72714542,199.79,199.74,0.66]
[1753155438911,42.78468397,199.84,199.75,0.66]
[1753155439108,10.72714542,199.79,199.71,10.72714542]
[1753155439317,16.78468397,199.81,199.71,0.66]
[1753155439489,10.72714542,199.75,199.73,0.03]
[1753155439691,10.72714542,199.74,199.73,0.03]
[1753155440420,10.72714542,199.75,199.73,0.03]
[1753155440592,10.72714542,199.77,199.73,0.03]
[1753155440786,17.98751751,199.8,199.73,0.03]
[1753155440787,10.72714542,199.74,199.73,0.03]
[1753155441224,16.78468397,199.79,199.73,0.03]
[1753155441510,5.0060072,199.76,199.73,0.69]
[1753155441708,10.72714542,199.75,199.73,0.03]
[1753155441923,2.16956157,199.75,199.61,0.2]
[1753155442222,10.72714542,199.62,199.61,0.2]
[1753155442516,10.72714542,199.62,199.52,0.66]
[1753155442517,10.72714542,199.53,199.5,11.19950358]
[1753155442686,10.72714542,199.54,199.5,11.19950358]
[1753155442885,10.72714542,199.51,199.42,0.66]
[1753155443086,10.72714542,199.51,199.37,2.5369751]
[1753155443087,26.0,199.49,199.37,2.2591]
[1753155443285,10.72714542,199.41,199.37,0.66]
[1753155443500,10.72714542,199.39,199.36,2.58129206]
[1753155443723,10.72714542,199.39,199.27,40.28]
[1753155443724,5.01512201,199.4,199.28,5.6778255]
[1753155443893,10.72714542,199.38,199.31,0.66]
[1753155444086,5.53541963,199.4,199.34,10.72714542]
[1753155444314,5.0132852,199.47,199.37,10.72714542]
[1753155444612,10.72714542,199.4,199.36,0.66]
[1753155444822,17.25468397,199.43,199.31,11.38714542]
[1753155444989,10.72714542,199.48,199.32,0.66]
[1753155445188,37.19714542,199.5,199.32,0.66]
[1753155445514,10.72714542,199.4,199.32,0.66]
[1753155445822,10.72714542,199.4,199.28,40.38]
[1753155445823,10.72714542,199.4,199.28,45.39792949]
[1753155445987,10.72714542,199.36,199.21,6.2269]
[1753155446315,16.78468397,199.34,199.21,6.2269]
[1753155446622,16.78468397,199.34,199.21,0.66]
[1753155446819,10.72714542,199.31,199.22,0.66]
[1753155447021,16.78468397,199.34,199.22,0.66]
[1753155447022,10.72714542,199.29,199.22,0.66]
[1753155447224,36.72714542,199.36,199.18,36.02]
[1753155447225,16.78468397,199.32,199.18,36.02]
[1753155447403,5.01803564,199.29,199.22,10.72714542]
[1753155447725,26.0,199.32,199.21,0.66]
[1753155447915,10.72714542,199.3,199.21,0.66]
[1753155448115,16.78468397,199.31,199.21,0.66]
[1753155448513,16.78468397,199.31,199.17,0.66]
[1753155448914,10.72714542,199.27,199.18,0.03]
[1753155449222,26.0,199.28,199.18,0.03]
[1753155449398,10.72714542,199.22,199.18,0.03]
[1753155449604,0.47,199.27,199.18,0.03]
[1753155449814,31.0185687,199.26,199.18,0.03]
[1753155450017,31.0185687,199.26,199.01,5.02487312]
[1753155450018,10.72714542,199.22,199.01,5.02487312]
[1753155450214,10.72714542,199.22,199.08,10.72714542]
[1753155450215,16.78468397,199.19,199.08,10.72714542]
[1753155450414,16.78468397,199.19,199.02,76.74]
[1753155450617,16.78468397,199.2,199.12,10.72714542]
[1753155450824,0.7,199.29,199.13,40.8]
[1753155451025,0.7,199.29,199.14,0.14216157]
[1753155451332,47.0232,199.43,199.14,0.14216157]
[1753155451333,0.7,199.34,199.17,0.14216157]
[1753155451517,10.72714542,199.28,199.19,10.72714542]
[1753155451712,10.72714542,199.28,199.21,10.72714542]
[1753155451919,10.72714542,199.31,199.23,10.72714542]
[1753155452226,0.7,199.34,199.21,0.66]
[1753155452525,0.7,199.39,199.26,0.14216157]
[1753155452715,10.72714542,199.33,199.25,0.66]
[1753155452916,0.7,199.39,199.28,10.72714542]
[1753155453221,0.7,199.39,199.29,10.72714542]
[1753155453410,11.42714542,199.39,199.31,10.72714542]
[1753155453613,0.7,199.38,199.26,0.14216157]
[1753155453833,10.72714542,199.36,199.28,10.72714542]
[1753155454025,10.72714542,199.37,199.29,10.72714542]
[1753155454228,10.72714542,199.39,199.27,5.01831685]
[1753155454425,0.7,199.46,199.38,10.72714542]
[1753155454629,0.7,199.5,199.41,10.72714542]
[1753155454924,11.42714542,199.54,199.46,10.72714542]
[1753155455135,5.71049908,199.59,199.46,0.66]
[1753155455312,10.72714542,199.56,199.46,0.66]
[1753155455513,5.01127536,199.55,199.46,0.66]
[1753155455735,10.72714542,199.5,199.43,41.18]
[1753155455914,10.72714542,199.5,199.4,10.72714542]
[1753155455915,10.72714542,199.46,199.4,10.72714542]
[1753155456228,10.72714542,199.46,199.38,5.01532397]
[1753155456416,10.72714542,199.43,199.34,41.18]
[1753155456729,0.7,199.51,199.42,10.72714542]
[1753155457029,10.72714542,199.47,199.37,0.66]
[1753155457209,10.72714542,199.47,199.39,10.72714542]